Workbook

Sheet Лист1
I1: к постановлению Администрации Североуральского городского округа от ___.10.2018 г. № __
A2: Приложение № 2 к муниципальной программе Североуральского городского округа «Развитие жилищно-коммунального хозяйства и транспортного обслуживания населения, повышение энергетической эффективности и охрана окружающей среды в Североуральском городском округе» до 2021 года
A3: План мероприятий
A4: по выполнению муниципальной программы Североуральского городского округа
A5: «Развитие жилищно-коммунального хозяйства и транспортного обслуживания населения,
A6: повышение энергетической эффективности и охрана окружающей среды в Североуральском городском округе» до 2021 года
A8: № строки | B8: Наименование мероприятия/ Источники расходов на финансирование | C8: Объем расходов на выполнение мероприятия за счет всех источников ресурсного обеспечения, тыс. руб. | L8: Номер строки целевых показателей, на достижение которых направлены мероприятия
C9: Всего | D9: 2014 год | E9: 2015 год | F9: 2016 год | G9: 2017 год | H9: 2018 год | I9: 2019 год | J9: 2020 год | K9: 2021 год
B10: 1 | C10: 2 | D10: 3 | E10: 4 | F10: 5 | G10: 6 | H10: 7 | I10: 8 | J10: 9 | K10: 10 | L10: 11
A11: 1 | B11: ВСЕГО по муниципальной программе, в том числе: | C11: =SUM(C12+C15+C16) -> 1391625.077 | D11: =SUM(D12+D15+D16) -> 283826.9 | E11: 348239.16 | F11: 216622.5876 | G11: 122867.7562 | H11: 91369.77291 | I11: 141162 | J11: 122553 | K11: 64983.9 | L11: Х
A12: =SUM(A11+1) -> 2 | B12: местный бюджет, в т.ч.: | C12: =SUM(D12:K12) -> 849692.268 | D12: =SUM(D13:D14) -> 92792.8 | E12: 126635.26 | F12: 117147.5734 | G12: 96239.06172 | H12: 90101.47291 | I12: 140196 | J12: 121596.2 | K12: 64983.9
A13: =SUM(A12+1) -> 3 | B13: - местный бюджет | C13: =SUM(D13:K13) -> 849497.0024 | D13: =SUM(D18+D23) -> 92792.8 | E13: 126635.26 | F13: 117147.5734 | G13: 96043.79612 | H13: 90101.47291 | I13: 140196 | J13: 121596.2 | K13: 64983.9
A14: 4 | B14: - средства заинтересованных лиц | C14: =SUM(D14:K14) -> 195.2656 | D14: =SUM(D24) -> 0 | E14: 0 | F14: 0 | G14: 195.2656 | H14: 0 | I14: 0 | J14: 0 | K14: 0
A15: 5 | B15: областной бюджет | C15: =SUM(D15:K15) -> 338844.6481 | D15: =SUM(D19+D25) -> 109216.1 | E15: 135104.3 | F15: 81477.35126 | G15: 9855.79685 | H15: 1268.3 | I15: 966 | J15: 956.8 | K15: 0
A16: 6 | B16: федеральный бюджет | C16: =SUM(D16:K16) -> 203088.1605 | D16: =SUM(D26+D20) -> 81818 | E16: 86499.6 | F16: 17997.66293 | G16: 16772.89759 | H16: 0 | I16: 0 | J16: 0 | K16: 0
A17: 7 | B17: Капитальные вложения | C17: =SUM(C18:C20) -> 768376.141 | D17: =SUM(D18:D20) -> 232761.9 | E17: =SUM(E18:E20) -> 271669 | F17: 133207.8847 | G17: 16137.35632 | H17: 2100 | I17: 55500 | J17: 57000 | K17: 0 | L17: Х
A18: 8 | B18: местный бюджет | C18: =SUM(D18:K18) -> 251771.7572 | D18: =D34+D130+D206+D226+D257+D292+D361+D383 -> 44727.8 | E18: =E34+E130+E206+E226+E257+E292+E361+E383 -> 50411.3 | F18: =F34+F130+F206+F226+F257+F292+F361+F383 -> 34707.97051 | G18: =G34+G130+G206+G226+G257+G292+G361+G383+G420 -> 7324.68673 | H18: =H34+H130+H206+H226+H257+H292+H361+H383 -> 2100 | I18: =I34+I130+I206+I226+I257+I292+I361+I383 -> 55500 | J18: =J34+J130+J206+J226+J257+J292+J361+J383 -> 57000 | K18: =K34+K130+K206+K226+K257+K292+K361+K383 -> 0
A19: 9 | B19: областной бюджет | C19: =SUM(D19:K19) -> 329148.1133 | D19: =D131+D227+D35 -> 106216.1 | E19: =E131+E227+E35 -> 134758.1 | F19: =F131+F227 -> 80502.25126 | G19: 7671.662 | H19: 0 | I19: 0 | J19: 0 | K19: 0
A20: 10 | B20: федеральный бюджет | C20: =SUM(D20:K20) -> 187456.2705 | D20: =D228 -> 81818 | E20: =E228 -> 86499.6 | F20: 17997.66293 | G20: 1141.00759 | H20: 0 | I20: 0 | J20: 0 | K20: 0
A21: 11 | B21: Прочие нужды | C21: =SUM(C26+C25+C22) -> 623248.9356 | D21: =SUM(D22:D25) -> 99130 | E21: =SUM(E22:E25) -> 152794.12 | F21: =SUM(F22:F25) -> 165854.3058 | G21: =SUM(G26+G25+G22) -> 106730.3998 | H21: =SUM(H26+H25+H22) -> 89269.77291 | I21: =SUM(I26+I25+I22) -> 85662 | J21: =SUM(J26+J25+J22) -> 65553 | K21: =SUM(K26+K25+K22) -> 64983.9 | L21: Х
A22: 12 | B22: местный бюджет, в т.ч.: | C22: =SUM(D22:K22) -> 597920.5108 | D22: =D49+D180+D215+D244+D301+D370+D399+D266+D352 -> 48065 | E22: =E49+E180+E215+E244+E301+E370+E399+E266+E352 -> 76223.96 | F22: =F49+F180+F215+F244+F301+F370+F399+F266+F352 -> 82439.60288 | G22: =SUM(G23:G24) -> 88914.37499 | H22: =H49+H180+H215+H244+H301+H370+H399+H266+H352 -> 88001.47291 | I22: =I49+I180+I215+I244+I301+I370+I399+I266+I352 -> 84696 | J22: =J49+J180+J215+J244+J301+J370+J399+J266+J352 -> 64596.2 | K22: =K49+K180+K215+K244+K301+K370+K399+K266+K352 -> 64983.9
A23: 13 | B23: - местный бюджет | C23: =SUM(C49+C180+C215+C244+C266+C301+C352+C370+C399+C436) -> 597725.2452 | D23: 48065 | E23: 76223.96 | F23: 82439.60288 | G23: =SUM(G49+G180+G215+G244+G266+G301+G352+G370+G399+G436) -> 88719.10939 | H23: 88001.47291 | I23: 84696 | J23: 64596.2 | K23: 64983.9
A24: 14 | B24: - средства заинтересованных лиц | C24: =SUM(D24:K24) -> 195.2656 | D24: =SUM(D437) -> 0 | E24: 0 | F24: 0 | G24: 195.2656 | H24: 0 | I24: 0 | J24: 0 | K24: 0
A25: 15 | B25: областной бюджет | C25: =SUM(D25:K25) -> 9696.53485 | D25: =SUM(D181+D398+D50+D267+D438) -> 3000 | E25: 346.2 | F25: 975.1 | G25: 2184.13485 | H25: 1268.3 | I25: 966 | J25: 956.8 | K25: 0
A26: 16 | B26: федеральный бюджет | C26: =SUM(D26:K26) -> 15631.89 | D26: 0 | E26: =E181 -> 0 | F26: =F181 -> 0 | G26: =SUM(G439) -> 15631.89 | H26: =SUM(H439) -> 0 | I26: =SUM(I439) -> 0 | J26: =SUM(J439) -> 0 | K26: =SUM(K439) -> 0
A27: 17 | B27: Подпрограмма 1: Комплексное благоустройство территории Североуральского городского округа
A28: 18 | B28: Всего по подпрограмме 1, | C28: =SUM(C30+C31) -> 262395.0116 | D28: =SUM(D30:D31) -> 25725.2 | E28: 29762.2 | F28: 47222.84145 | G28: 35527.97723 | H28: 33220.99291 | I28: 31795 | J28: 30038.3 | K28: =SUM(K30:K31) -> 29102.5 | L28: Х
A29: 19 | B29: в том числе:
A30: 20 | B30: местный бюджет | C30: =SUM(D30:K30) -> 252746.7116 | D30: =SUM(D34+D49) -> 24510.5 | E30: 26102.3 | F30: 46247.74145 | G30: =SUM(G34+G49) -> 34564.47723 | H30: 32266.69291 | I30: 30850 | J30: 29102.5 | K30: 29102.5
A31: 21 | B31: областной бюджет | C31: =SUM(D31:K31) -> 9648.3 | D31: 1214.7 | E31: 3659.9 | F31: 975.1 | G31: 963.5 | H31: 954.3 | I31: 945 | J31: 935.8 | K31: 0
A32: 22 | B32: 1. Капитальные вложения
A33: 23 | B33: Всего по направлению «Капитальные вложения» всего, в том числе | C33: =SUM(D33:K33) -> 15605.1 | D33: =SUM(D34+D35) -> 3536.4 | E33: =SUM(E34+E35) -> 3674.7 | F33: =SUM(F34) -> 4819 | G33: 3575 | H33: 0 | I33: 0 | J33: 0 | K33: 0 | L33: Х
A34: 24 | B34: местный бюджет | C34: =SUM(D34:K34) -> 11076.7 | D34: =SUM(D45) -> 2321.7 | E34: =SUM(E45) -> 361 | F34: =SUM(F45) -> 4819 | G34: =SUM(G38+G41) -> 3575 | H34: 0 | I34: 0 | J34: 0 | K34: =SUM(K45) -> 0
A35: 25 | B35: областной бюджет | C35: =SUM(D35:K35) -> 4528.4 | D35: =SUM(D42) -> 1214.7 | E35: =SUM(E42) -> 3313.7 | F35: 0 | G35: =SUM(G42) -> 0 | H35: 0 | I35: 0 | J35: 0 | K35: =SUM(K42) -> 0
A36: 26 | B36: 1.1. Бюджетные инвестиции в объекты капитального строительства
A37: 27 | B37: Бюджетные инвестиции в объекты капитального строительства всего, в том числе | C37: 0 | D37: 0 | E37: 0 | F37: 0 | G37: 0 | H37: 0 | I37: 0 | J37: 0 | K37: 0 | L37: Х
A38: 28 | B38: местный бюджет | C38: 0 | D38: 0 | E38: 0 | F38: 0 | G38: 0 | H38: 0 | I38: 0 | J38: 0 | K38: 0
A39: 29 | B39: 1.2. Иные капитальные вложения
A40: 30 | B40: Всего | C40: =SUM(D40:K40) -> 15605.1 | D40: =SUM(D41:D42) -> 3536.4 | E40: =SUM(E41:E42) -> 3674.7 | F40: 4819 | G40: 3575 | H40: 0 | I40: 0 | J40: 0 | K40: =SUM(K41:K42) -> 0 | L40: Х
A41: 31 | B41: местный бюджет | C41: =SUM(D41:K41) -> 11076.7 | D41: =SUM(D45) -> 2321.7 | E41: 361 | F41: 4819 | G41: 3575 | H41: 0 | I41: 0 | J41: 0 | K41: 0
A42: 32 | B42: областной бюджет | C42: =SUM(D42:K42) -> 4528.4 | D42: =SUM(D46) -> 1214.7 | E42: =SUM(E46) -> 3313.7 | F42: 0 | G42: =SUM(G46) -> 0 | H42: 0 | I42: 0 | J42: 0 | K42: =SUM(K46) -> 0
A43: 33 | B43: Мероприятие 1 Благоустройство дворовых территорий Североуральского городского округа
A44: 34 | B44: Всего, из них | C44: =SUM(D44:K44) -> 15605.1 | D44: =D45+D46 -> 3536.4 | E44: =SUM(E45:E46) -> 3674.7 | F44: =SUM(F45) -> 4819 | G44: 3575 | H44: 0 | I44: 0 | J44: 0 | K44: 0 | L44: стр. 4
A45: 35 | B45: местный бюджет | C45: =SUM(D45:K45) -> 11076.7 | D45: 2321.7 | E45: 361 | F45: 4819 | G45: 3575 | H45: 0 | I45: 0 | J45: 0 | K45: 0
A46: 36 | B46: областной бюджет | C46: =SUM(D46:K46) -> 4528.4 | D46: 1214.7 | E46: 3313.7 | F46: 0 | G46: 0 | H46: 0 | I46: 0 | J46: 0 | K46: 0
A47: 37 | B47: 3. Прочие нужды
A48: 38 | B48: Всего по направлению «Прочие нужды», всего, в том числе: | C48: =SUM(D48:K48) -> 246789.9116 | D48: =SUM(D49:D50) -> 22188.8 | E48: 26087.5 | F48: 42403.84145 | G48: 31952.97723 | H48: 33220.99291 | I48: 31795 | J48: 30038.3 | K48: 29102.5 | L48: Х
A49: 39 | B49: местный бюджет | C49: =SUM(D49:K49) -> 241670.0116 | D49: =SUM(D60+D69+D72+D75+D53+D122) -> 22188.8 | E49: 25741.3 | F49: 41428.74145 | G49: 30989.47723 | H49: 32266.69291 | I49: 30850 | J49: 29102.5 | K49: 29102.5
A50: 40 | B50: областной бюджет | C50: =SUM(D50:K50) -> 5119.9 | D50: =SUM(D76) -> 0 | E50: =SUM(E76) -> 346.2 | F50: =SUM(F123) -> 975.1 | G50: 963.5 | H50: 954.3 | I50: 945 | J50: 935.8 | K50: 0
A51: 41 | B51: Мероприятие 1 Благоустройство дворовых территорий Североуральского городского округа
A52: 42 | B52: Всего, из них | C52: =SUM(D52:K52) -> 7134.745 | D52: =D53+D54 -> 310.9 | E52: =SUM(E53) -> 436 | F52: 2681 | G52: 500 | H52: 1206.845 | I52: 1000 | J52: 500 | K52: 500 | L52: стр. 4
A53: 43 | B53: местный бюджет | C53: =SUM(D53:K53) -> 7134.745 | D53: 310.9 | E53: 436 | F53: 2681 | G53: 500 | H53: 1206.845 | I53: 1000 | J53: 500 | K53: 500
A54: 44 | B54: областной бюджет | C54: =SUM(D54:K54) -> 0 | D54: 0 | E54: 0 | F54: 0 | G54: 0 | H54: 0 | I54: 0 | J54: 0 | K54: 0
A55: 45 | B55: Мероприятие 2 Благоустройство парков и скверов в городе Североуральске
A56: 46 | B56: Всего, из них | C56: =SUM(D56:J56) -> 0 | D56: =D57+D58 -> 0 | E56: =SUM(E57) -> 0 | F56: 0 | G56: 0 | H56: 0 | I56: 0 | J56: 0 | K56: 0 | L56: Х
A57: 47 | B57: местный бюджет | C57: =SUM(D57:J57) -> 0 | D57: 0 | E57: 0 | F57: 0 | G57: 0 | H57: =SUM(G57) -> 0 | I57: =SUM(H57) -> 0 | J57: =SUM(I57) -> 0 | K57: =SUM(J57) -> 0
A58: 48 | B58: Мероприятие 3- Уличное освещение
A59: 49 | B59: Всего, в том числе: | C59: =SUM(D59:K59) -> 124662.6948 | D59: =SUM(D60) -> 12001 | E59: 12600 | F59: 18150.6908 | G59: 15955 | H59: 16956.004 | I59: 17000 | J59: =SUM(J60) -> 16000 | K59: =SUM(K60) -> 16000 | L59: стр.8. с 2017 года стр. 9
A60: 50 | B60: местный бюджет | C60: =SUM(D60:K60) -> 124662.6948 | D60: =SUM(D63+D66) -> 12001 | E60: 12600 | F60: 18150.6908 | G60: 15955 | H60: 16956.004 | I60: 17000 | J60: 16000 | K60: 16000
A61: 51 | B61: - Обеспечение бесперебойной подачи электроэнергии
A62: 52 | B62: Всего: | C62: =SUM(D62:K62) -> 91203.0884 | D62: =SUM(D63) -> 8644.1 | E62: =SUM(E63) -> 8800 | F62: 10660.6908 | G62: 13098.2976 | H62: 11000 | I62: 13000 | J62: 13000 | K62: 13000 | L62: стр.8. с 2017 года стр. 9
A63: 53 | B63: местный бюджет | C63: =SUM(D63:K63) -> 91203.0884 | D63: 8644.1 | E63: 8800 | F63: 10660.6908 | G63: 13098.2976 | H63: 11000 | I63: 13000 | J63: 13000 | K63: 13000
A64: 54 | B64: - Содержание, ремонт и модернизация сетей уличного освещения
A65: 55 | B65: Всего: | C65: =SUM(D65:K65) -> 33459.6064 | D65: =SUM(D66) -> 3356.9 | E65: =SUM(E66) -> 3800 | F65: 7490 | G65: 2856.7024 | H65: 5956.004 | I65: 4000 | J65: 3000 | K65: 3000 | L65: стр.8. с 2017 года стр. 9
A66: 56 | B66: местный бюджет | C66: =SUM(D66:K66) -> 33459.6064 | D66: 3356.9 | E66: 3800 | F66: 7490 | G66: 2856.7024 | H66: 5956.004 | I66: 4000 | J66: 3000 | K66: 3000
A67: 57 | B67: Мероприятие 4 - Озеленение (цветники, валка сухих деревьев)
A68: 58 | B68: Всего, из них | C68: =SUM(D68:K68) -> 26120.09895 | D68: =SUM(D69) -> 2890.9 | E68: 2148 | F68: 3923.84386 | G68: 3352.35509 | H68: 3200 | I68: 4000 | J68: 3302.5 | K68: 3302.5 | L68: стр.11
A69: 59 | B69: местный бюджет | C69: =SUM(D69:K69) -> 26120.09895 | D69: 2890.9 | E69: 2148 | F69: 3923.84386 | G69: 3352.35509 | H69: 3200 | I69: 4000 | J69: 3302.5 | K69: 3302.5
A70: 60 | B70: Мероприятие 5 - Организация и содержание мест захоронения
A71: 61 | B71: Всего, из них | C71: =SUM(D71:K71) -> 23121.09851 | D71: =SUM(D72) -> 2263.1 | E71: 2306.9 | F71: 3619.44212 | G71: 2961.65639 | H71: 2970 | I71: 3000 | J71: 3000 | K71: 3000 | L71: стр.16
A72: 62 | B72: местный бюджет | C72: =SUM(D72:K72) -> 23121.09851 | D72: 2263.1 | E72: 2306.9 | F72: 3619.44212 | G72: 2961.65639 | H72: 2970 | I72: 3000 | J72: =SUM(I72) -> 3000 | K72: =SUM(J72) -> 3000
A73: 63 | B73: Мероприятие 6 - Прочие мероприятия по благоустройству
A74: 64 | B74: Всего, в том числе: | C74: =SUM(D74:K74) -> 59455.12433 | D74: =SUM(D75:D76) -> 4722.9 | E74: =SUM(E75:E76) -> 8596.6 | F74: 12256.96467 | G74: 8014.41575 | H74: 7414.24391 | I74: 5850 | J74: 6300 | K74: 6300 | L74: стр.5,5.1.,6,11,13,14,15,17
A75: 65 | B75: местный бюджет | C75: =SUM(D75:K75) -> 59108.92433 | D75: =SUM(D79+D82+D89+D92+D98+D95+D101+D107+D104+D85+D110+D113) -> 4722.9 | E75: =SUM(E79+E82+E89+E92+E98+E95+E101+E107+E104+E85+E110+E113) -> 8250.4 | F75: =SUM(F79+F82+F89+F92+F98+F95+F101+F107+F104+F85+F110+F113) -> 12256.96467 | G75: =SUM(G79+G82+G89+G92+G98+G95+G101+G107+G104+G85+G110+G113) -> 8014.41575 | H75: =SUM(H79+H82+H89+H92+H98+H95+H101+H107+H104+H85+H110+H113+H116+H119) -> 7414.24391 | I75: =SUM(I79+I82+I89+I92+I98+I95+I101+I107+I104+I85+I110+I113+I116+I119) -> 5850 | J75: =SUM(J79+J82+J89+J92+J98+J95+J101+J107+J104+J85+J110+J113+J116+J119) -> 6300 | K75: =SUM(K79+K82+K89+K92+K98+K95+K101+K107+K104+K85+K110+K113+K116+K119) -> 6300
A76: 66 | B76: областной бюджет | C76: =SUM(D76:K76) -> 346.2 | D76: =SUM(D86) -> 0 | E76: =SUM(E86) -> 346.2 | F76: 0 | G76: 0 | H76: 0 | I76: 0 | J76: 0 | K76: 0
A77: =SUM(A76+1) -> 67 | B77: - Содержание памятников
A78: 68 | B78: Всего: | C78: =SUM(D78:K78) -> 3624.85888 | D78: =SUM(D79) -> 369.2 | E78: 404.9 | F78: 384.30006 | G78: 466.45882 | H78: 500 | I78: 500 | J78: 500 | K78: 500 | L78: стр. 17
A79: 69 | B79: местный бюджет | C79: =SUM(D79:K79) -> 3624.85888 | D79: 369.2 | E79: 404.9 | F79: 384.30006 | G79: 466.45882 | H79: 500 | I79: 500 | J79: 500 | K79: 500
A80: 70 | B80: - Уход за объектами благоустройства
A81: 71 | B81: Всего: | C81: =SUM(C82) -> 9734.54965 | D81: =SUM(D82) -> 1098.7 | E81: =SUM(E82) -> 976.1 | F81: 999.8138 | G81: 1147.68593 | H81: 1312.24992 | I81: 1400 | J81: 1400 | K81: 1400 | L81: стр. 5
A82: 72 | B82: местный бюджет | C82: =SUM(D82:K82) -> 9734.54965 | D82: 1098.7 | E82: 976.1 | F82: 999.8138 | G82: 1147.68593 | H82: 1312.24992 | I82: 1400 | J82: 1400 | K82: 1400
A83: 73 | B83: - Регулирование численности безнадзорных животных
A84: 74 | B84: Всего: | C84: =SUM(D84:J84) -> 1677.2 | D84: =SUM(D85:D86) -> 500 | E84: =SUM(E85:E86) -> 1177.2 | F84: 0 | G84: 0 | H84: 0 | I84: 0 | J84: 0 | K84: =SUM(K85:K86) -> 0 | L84: стр. 13
A85: 75 | B85: местный бюджет | C85: =SUM(D85:J85) -> 1331 | D85: 500 | E85: 831 | F85: 0 | G85: 0 | H85: 0 | I85: =SUM(H85) -> 0 | J85: =SUM(I85) -> 0 | K85: =SUM(J85) -> 0
A86: 76 | B86: областной бюджет | C86: =SUM(D86:K86) -> 346.2 | E86: 346.2
A87: 77 | B87: - Содержание биоямы (скотомогильник)
A88: 78 | B88: Всего: | C88: =SUM(C89) -> 717.18218 | D88: =SUM(D89) -> 116.1 | E88: =SUM(E89) -> 69.3 | F88: 77.02912 | G88: 74.75306 | H88: 80 | I88: 100 | J88: 100 | K88: 100 | L88: стр.15
A89: 79 | B89: местный бюджет | C89: =SUM(D89:K89) -> 717.18218 | D89: 116.1 | E89: 69.3 | F89: 77.02912 | G89: 74.75306 | H89: 80 | I89: 100 | J89: 100 | K89: 100
A90: 80 | B90: - Обустройство и эксплуатация новогодних городков
A91: 81 | B91: Всего: | C91: =SUM(C92) -> 23424.7 | D91: =SUM(D92) -> 1685.5 | E91: =SUM(E92) -> 2669.2 | F91: 2900 | G91: 3120 | H91: 2850 | I91: 3100 | J91: 3550 | K91: 3550 | L91: стр.5
A92: 82 | B92: местный бюджет | C92: =SUM(D92:K92) -> 23424.7 | D92: 1685.5 | E92: 2669.2 | F92: 2900 | G92: 3120 | H92: 2850 | I92: 3100 | J92: 3550 | K92: 3550
A93: 83 | B93: - Приобретение декоративного освещения для улиц города Североуральска, ремонт светодиодных консолей
A94: 84 | B94: Всего: | C94: =SUM(C95) -> 4939.5 | D94: =SUM(D95) -> 773.4 | E94: =SUM(E95) -> 1701 | F94: 0 | G94: 560 | H94: 405.1 | I94: 500 | J94: 500 | K94: 500 | L94: стр.5
A95: 85 | B95: местный бюджет | C95: =SUM(D95:K95) -> 4939.5 | D95: 773.4 | E95: 1701 | F95: 0 | G95: 560 | H95: 405.1 | I95: 500 | J95: =SUM(I95) -> 500 | K95: =SUM(J95) -> 500
A96: 86 | B96: - Акарицидная обработка общественных мест
A97: 87 | B97: Всего: | C97: =SUM(C98) -> 882.2899 | D97: =SUM(D98) -> 92 | E97: =SUM(E98) -> 99.9 | F97: 99.9899 | G97: 45 | H97: 95.4 | I97: 150 | J97: 150 | K97: 150 | L97: стр.14
A98: 88 | B98: местный бюджет | C98: =SUM(D98:K98) -> 882.2899 | D98: 92 | E98: 99.9 | F98: 99.9899 | G98: 45 | H98: 95.4 | I98: 150 | J98: 150 | K98: 150
A99: 89 | B99: - Приобретение грунта плодородного (земли садовой)
A100: 90 | B100: Всего: | C100: =SUM(C101) -> 637 | D100: =SUM(D101) -> 88 | E100: =SUM(E101) -> 0 | F100: 150 | G100: 99 | H100: 0 | I100: 100 | J100: 100 | K100: 100 | L100: стр.11
A101: 91 | B101: местный бюджет | C101: =SUM(D101:K101) -> 637 | D101: 88 | E101: 0 | F101: 150 | G101: 99 | H101: 0 | I101: 100 | J101: 100 | K101: 100
A102: 92 | B102: - Приобретение и установка металлических урн и скамеек
A103: 93 | B103: Всего: | C103: =SUM(D103:K103) -> 1717.59701 | D103: =SUM(D104) -> 0 | E103: =SUM(E104) -> 0 | F103: 1710.25802 | G103: 0 | H103: 7.33899 | I103: 0 | J103: 0 | K103: 0 | L103: стр.6
A104: 94 | B104: местный бюджет | C104: =SUM(D104:K104) -> 1717.59701 | D104: 0 | E104: 0 | F104: 1710.25802 | G104: 0 | H104: 7.33899 | I104: 0 | J104: =SUM(I104) -> 0 | K104: =SUM(J104) -> 0
A105: 95 | B105: - Благоустройство мест общего пользования территории Североуральского городского округа
A106: 96 | B106: Всего: | C106: =SUM(D106:K106) -> 9561.04171 | D106: =SUM(D107) -> 0 | E106: =SUM(E107) -> 1499 | F106: 5935.57377 | G106: 2093.46794 | H106: 33 | I106: 0 | J106: 0 | K106: 0 | L106: стр.5
A107: 97 | B107: местный бюджет | C107: =SUM(D107:K107) -> 9561.04171 | D107: 0 | E107: 1499 | F107: 5935.57377 | G107: 2093.46794 | H107: 33 | I107: 0 | J107: =SUM(I107) -> 0 | K107: =SUM(J107) -> 0
A108: 98 | B108: - Обустройство источника нецентрализованного водоснабжения в п. Сосьва
A109: 99 | B109: Всего: | C109: =SUM(D109:K109) -> 58.05 | D109: =SUM(D110) -> 0 | E109: =SUM(E110) -> 0 | F109: 0 | G109: 58.05 | H109: 0 | I109: 0 | J109: 0 | K109: 0 | L109: стр.5
A110: 100 | B110: местный бюджет | C110: =SUM(D110:K110) -> 58.05 | D110: 0 | E110: 0 | F110: 0 | G110: 58.05 | H110: 0 | I110: 0 | J110: =SUM(I110) -> 0 | K110: =SUM(J110) -> 0
A111: 101 | B111: - Разработка проектно-сметной документации и проведение ценовой экспертизы скверов, парков и аллей Североуральского городского округа
A112: 102 | B112: Всего: | C112: =SUM(D112:K112) -> 733.155 | D112: =SUM(D113) -> 0 | E112: =SUM(E113) -> 0 | F112: 0 | G112: 350 | H112: 383.155 | I112: 0 | J112: 0 | K112: 0 | L112: стр.5.1.
A113: 103 | B113: местный бюджет | C113: =SUM(D113:K113) -> 733.155 | D113: 0 | E113: 0 | F113: 0 | G113: 350 | H113: 383.155 | I113: 0 | J113: =SUM(I113) -> 0 | K113: =SUM(J113) -> 0
A114: 104 | B114: - Приобретение и установка остановочных комплексов на территории Североуральского городского округа
A115: 105 | B115: Всего: | C115: =SUM(D115:K115) -> 1500 | D115: =SUM(D116) -> 0 | E115: =SUM(E116) -> 0 | F115: 0 | G115: 0 | H115: 1500 | I115: 0 | J115: 0 | K115: 0 | L115: стр.5.2.
A116: 106 | B116: местный бюджет | C116: =SUM(D116:K116) -> 1500 | D116: 0 | E116: 0 | F116: 0 | G116: 0 | H116: 1500 | I116: 0 | J116: =SUM(I116) -> 0 | K116: =SUM(J116) -> 0
A117: 107 | B117: - Изготовление и установка информационных стендов у здания Администрации Североуральского городского округа
A118: 108 | B118: Всего: | C118: =SUM(D118:K118) -> 248 | D118: =SUM(D119) -> 0 | E118: =SUM(E119) -> 0 | F118: 0 | G118: 0 | H118: 248 | I118: 0 | J118: 0 | K118: 0 | L118: стр.5.3.
A119: 109 | B119: местный бюджет | C119: =SUM(D119:K119) -> 248 | D119: 0 | E119: 0 | F119: 0 | G119: 0 | H119: 248 | I119: 0 | J119: =SUM(I119) -> 0 | K119: =SUM(J119) -> 0
A120: 110 | B120: Мероприятие 7 - Регулирование численности безнадзорных животных
A121: 111 | B121: Всего, из них | C121: =SUM(D121:K121) -> 6296.15 | D121: =SUM(D122:D123) -> 0 | E121: =SUM(E122:E123) -> 0 | F121: 1771.9 | G121: 1169.55 | H121: 1473.9 | I121: 945 | J121: 935.8 | K121: 0 | L121: стр.13
A122: 112 | B122: местный бюджет | C122: =SUM(D122:K122) -> 1522.45 | D122: 0 | E122: 0 | F122: 796.8 | G122: 206.05 | H122: 519.6 | I122: 0 | J122: 0 | K122: 0
A123: 113 | B123: областной бюджет | C123: =SUM(D123:K123) -> 4773.7 | E123: 0 | F123: 975.1 | G123: 963.5 | H123: 954.3 | I123: 945 | J123: 935.8 | K123: 0
A124: 114 | B124: Подпрограмма 2: Муниципальная программа по энергосбережению и повышению энергетической эффективности объектов Североуральского городского округа
A125: 115 | B125: Всего по подпрограмме 2, в том числе | C125: =SUM(D125:K125) -> 201531.3098 | D125: =SUM(D126:D127) -> 9165.5 | E125: 2961.6 | F125: 15455.86781 | G125: 16404.34197 | H125: 21918.5 | I125: 77125.5 | J125: 57750 | K125: 750 | L125: Х
A126: 116 | B126: местный бюджет | C126: =SUM(D126:K126) -> 195186.9098 | D126: =SUM(D130+D180) -> 2821.1 | E126: =SUM(E130+E180) -> 2961.6 | F126: =F130+F180 -> 15455.86781 | G126: =SUM(G130+G180) -> 16404.34197 | H126: 21918.5 | I126: 77125.5 | J126: 57750 | K126: 750
A127: 117 | B127: областной бюджет | C127: =SUM(D127:K127) -> 6344.4 | D127: =SUM(D131+D181) -> 6344.4 | E127: =SUM(E131+E181) -> 0 | F127: =SUM(F131+F181) -> 0 | G127: 0 | H127: 0 | I127: 0 | J127: 0 | K127: 0
A128: 118 | B128: 1. Капитальные вложения
A129: 119 | B129: Всего по направлению «Капитальные вложения», всего, в том числе | C129: =SUM(D129:K129) -> 136420.5512 | D129: =SUM(D130:D131) -> 4173.6 | E129: 1420 | F129: 14122.6092 | G129: 2804.34197 | H129: 1400 | I129: 55500 | J129: 57000 | K129: 0 | L129: Х
A130: 120 | B130: местный бюджет | C130: =SUM(D130:K130) -> 133076.1512 | D130: =SUM(D168+D134) -> 829.2 | E130: 1420 | F130: 14122.6092 | G130: 2804.34197 | H130: 1400 | I130: 55500 | J130: 57000 | K130: 0
A131: 121 | B131: областной бюджет | C131: =SUM(D131:K131) -> 3344.4 | D131: 3344.4 | E131: 0 | F131: 0 | G131: 0 | H131: 0 | I131: 0 | J131: 0 | K131: 0
A132: 122 | B132: 1.1. Бюджетные инвестиции в объекты капитального строительства
A133: 123 | B133: Бюджетные инвестиции в объекты капитального строительства всего, в том числе | C133: =SUM(D133:J133) -> 130826.9512 | D133: =SUM(D134:D135) -> 0 | E133: =SUM(E134:E135) -> 0 | F133: 14122.6092 | G133: 2804.34197 | H133: 1400 | I133: 55500 | J133: 57000 | K133: 0 | L133: Х
A134: 124 | B134: местный бюджет | C134: =SUM(D134:K134) -> 130826.9512 | D134: =SUM(D138+D150+D153+D157+D160) -> 0 | E134: =SUM(E138+E150+E153+E157+E160) -> 0 | F134: =SUM(F138+F150+F153+F157+F160) -> 14122.6092 | G134: =SUM(G138+G150+G153+G157+G160) -> 2804.34197 | H134: =SUM(H138+H150+H153+H157+H160) -> 1400 | I134: =SUM(I138+I150+I153+I157+I160+I164) -> 55500 | J134: =SUM(J138+J150+J153+J157+J160+J164) -> 57000 | K134: =SUM(K138+K150+K153+K157+K160+K164) -> 0
A135: 125 | B135: областной бюджет | C135: =SUM(D135:J135) -> 0 | D135: =SUM(D139+D154+D161) -> 0 | E135: =SUM(E139+E154+E161) -> 0 | F135: 0 | G135: 0 | H135: 0 | I135: 0 | J135: 0 | K135: 0
A136: 126 | B136: Мероприятие 3 - Закупка и установка осветительного оборудования с заменой неэффективного на энергосберегающее, в том числе замена ламп накаливания на энергосберегающие, строительство, модернизация сетей уличного освещения, проектно-сметные работы, экспертиза проектно-сметной документации
A137: 127 | B137: Всего, из них | C137: =SUM(D137:K137) -> 14458.20066 | D137: =SUM(D138:D139) -> 0 | E137: =SUM(E138:E139) -> 0 | F137: 12330 | G137: 2128.20066 | H137: 0 | I137: 0 | J137: 0 | K137: 0 | L137: стр.28
A138: 128 | B138: местный бюджет | C138: =SUM(D138:K138) -> 14458.20066 | D138: 0 | E138: 0 | F138: =SUM(F146+F142) -> 12330 | G138: =SUM(G146+G142) -> 2128.20066 | H138: 0 | I138: =SUM(H138) -> 0 | J138: 0 | K138: 0
A139: 129 | B139: областной бюджет | C139: =SUM(D139:J139) -> 0 | D139: 0 | E139: 0 | F139: 0 | G139: 0 | H139: 0 | I139: 0 | J139: 0 | K139: 0
A140: 130 | B140: - Разработка ПСД на строительство сетей уличного освещения микрорайона Южный
A141: =SUM(A140+1) -> 131 | B141: Всего: | C141: =SUM(D141:K141) -> 283.20066 | D141: =SUM(D142) -> 0 | E141: 0 | F141: 283.20066 | G141: 0 | H141: 0 | I141: 0 | J141: 0 | K141: 0 | L141: стр.28
A142: 132 | B142: местный бюджет | C142: =SUM(D142:K142) -> 283.20066 | D142: 0 | E142: 0 | F142: 283.20066 | G142: 0 | H142: 0 | I142: =SUM(H142) -> 0 | J142: =SUM(I142) -> 0 | K142: =SUM(J142) -> 0
A143: 133 | B143: областной бюджет | C143: =SUM(D143:J143) -> 0 | D143: 0 | E143: 0 | F143: 0 | G143: 0 | H143: 0 | I143: 0 | J143: 0 | K143: 0
A144: 134 | B144: - Строительство сетей уличного освещения микрорайона Южный
A145: 135 | B145: Всего: | C145: =SUM(D145:K145) -> 14175 | D145: =SUM(D146) -> 0 | E145: 0 | F145: 12046.79934 | G145: 2128.20066 | H145: 0 | I145: 0 | J145: 0 | K145: 0 | L145: стр.28
A146: 136 | B146: местный бюджет | C146: =SUM(D146:K146) -> 14175 | D146: 0 | E146: 0 | F146: 12046.79934 | G146: 2128.20066 | H146: 0 | I146: =SUM(H146) -> 0 | J146: =SUM(I146) -> 0 | K146: =SUM(J146) -> 0
A147: 137 | B147: областной бюджет | C147: =SUM(D147:J147) -> 0 | D147: 0 | E147: 0 | F147: 0 | G147: 0 | H147: 0 | I147: 0 | J147: 0 | K147: 0
A148: 138 | B148: Мероприятие 5 - Разработка, экспертиза проектно-сметной документации на строительство сетей водоснабжения в Североуральском городском округе
A149: 139 | B149: Всего, из них | C149: =SUM(D149:K149) -> 20000 | D149: =SUM(D150) -> 0 | E149: =SUM(E150) -> 0 | F149: 0 | G149: 0 | H149: 0 | I149: 20000 | J149: 0 | K149: 0 | L149: стр.31, введен с 2016 года
A150: 140 | B150: местный бюджет | C150: =SUM(D150:K150) -> 20000 | D150: 0 | E150: 0 | F150: 0 | G150: 0 | H150: =SUM(G150) -> 0 | I150: 20000 | J150: 0 | K150: 0
A151: 141 | B151: Мероприятие 6 - Строительство сетей водоснабжения в Североуральском городском округе
A152: 142 | B152: Всего, из них | C152: =SUM(D152:K152) -> 27000 | D152: =SUM(D153:D154) -> 0 | E152: =SUM(E153:E154) -> 0 | F152: 0 | G152: 0 | H152: 0 | I152: 0 | J152: 27000 | K152: 0 | L152: стр.32, введен с 2016 года
A153: 143 | B153: местный бюджет | C153: =SUM(D153:K153) -> 27000 | D153: 0 | E153: 0 | F153: 0 | G153: 0 | H153: =SUM(G153) -> 0 | I153: 0 | J153: 27000 | K153: 0
A154: 144 | B154: областной бюджет | C154: =SUM(D154:J154) -> 0 | D154: 0 | E154: 0 | F154: 0 | G154: 0 | H154: 0 | I154: 0 | J154: 0 | K154: 0
A155: 145 | B155: Мероприятие 7 - Разработка, экспертиза проектно-сметной документации на строительство котельных в Североуральском городском округе
A156: 146 | B156: Всего, из них | C156: =SUM(D156:K156) -> 9368.75051 | D156: =SUM(D157) -> 0 | E156: =SUM(E157) -> 0 | F156: 1792.6092 | G156: 676.14131 | H156: 1400 | I156: 5500 | J156: 0 | K156: 0 | L156: стр.33
A157: 147 | B157: местный бюджет | C157: =SUM(D157:K157) -> 9368.75051 | D157: 0 | E157: 0 | F157: 1792.6092 | G157: 676.14131 | H157: 1400 | I157: 5500 | J157: 0 | K157: 0
A158: 148 | B158: Мероприятие 8 - Строительство котельных в Североуральском городском округе
A159: 149 | B159: Всего, из них | C159: =SUM(D159:K159) -> 30000 | D159: =SUM(D160:D161) -> 0 | E159: =SUM(E160:E161) -> 0 | F159: 0 | G159: 0 | H159: 0 | I159: 0 | J159: 30000 | K159: 0 | L159: стр.34, введен с 2016 года
A160: 150 | B160: местный бюджет | C160: =SUM(D160:K160) -> 30000 | D160: 0 | E160: 0 | F160: 0 | G160: 0 | H160: 0 | I160: 0 | J160: 30000 | K160: 0
A161: 151 | B161: областной бюджет | C161: =SUM(D161:J161) -> 0 | D161: 0 | E161: 0 | F161: 0 | G161: 0 | H161: =SUM(G161) -> 0 | I161: =SUM(H161) -> 0 | J161: =SUM(I161) -> 0 | K161: =SUM(J161) -> 0
A162: 152 | B162: Мероприятие 10 - Разработка, экспертиза проектно-сметной документации на строительство, реконструкцию, капитальный ремонт насосно-фильтровальной станции на территории Североуральского городского округа
A163: 153 | B163: Всего, из них | C163: =SUM(D163:K163) -> 30000 | D163: =SUM(D164:D165) -> 0 | E163: =SUM(E164:E165) -> 0 | F163: 0 | G163: 0 | H163: 0 | I163: 30000 | J163: 0 | K163: 0 | L163: стр.34.1.
A164: 154 | B164: местный бюджет | C164: =SUM(D164:K164) -> 30000 | D164: 0 | E164: 0 | F164: 0 | G164: 0 | H164: 0 | I164: 30000 | J164: 0 | K164: 0
A165: 155 | B165: областной бюджет | C165: =SUM(D165:J165) -> 0 | D165: 0 | E165: 0 | F165: 0 | G165: 0 | H165: =SUM(G165) -> 0 | I165: =SUM(H165) -> 0 | J165: =SUM(I165) -> 0 | K165: =SUM(J165) -> 0
A166: 156 | B166: 1.2. Иные капитальные вложения
A167: 157 | B167: Всего, в том числе | C167: =SUM(D167:K167) -> 5593.6 | D167: =SUM(D168:D169) -> 4173.6 | E167: 1420 | F167: 0 | G167: 0 | H167: 0 | I167: 0 | J167: 0 | K167: 0 | L167: Х
A168: 158 | B168: местный бюджет | C168: =SUM(D168:K168) -> 2249.2 | D168: =SUM(D176+D172) -> 829.2 | E168: =SUM(E176) -> 1420 | F168: 0 | G168: 0 | H168: 0 | I168: 0 | J168: 0 | K168: 0
A169: 159 | B169: областной бюджет | C169: =SUM(D169:K169) -> 3344.4 | D169: =SUM(D177+D173) -> 3344.4 | E169: =SUM(E177) -> 0 | F169: 0 | G169: 0 | H169: 0 | I169: 0 | J169: 0 | K169: 0
A170: 160 | B170: Мероприятие 1- Реконструкция, модернизация водопроводных сетей, сетей системы водоотведения с заменой (без замены) оборудования с более высоким КПД, установка регулируемого привода, реконструкция тепловых сетей, в том числе тепловых пунктов, котельных, капитальный ремонт систем коммунального хозяйства
A171: 161 | B171: Всего, в том числе: | C171: =SUM(D171:K171) -> 3037.4 | D171: =SUM(D172:D173) -> 3037.4 | E171: 0 | F171: 0 | G171: 0 | H171: 0 | I171: 0 | J171: 0 | K171: =SUM(K172:K173) -> 0 | L171: стр.29
A172: 162 | B172: местный бюджет | C172: =SUM(D172:K172) -> 281 | D172: 281 | E172: 0 | F172: 0 | G172: 0 | H172: 0 | I172: 0 | J172: 0 | K172: 0
A173: 163 | B173: областной бюджет | C173: =SUM(D173:K173) -> 2756.4 | D173: 2756.4 | E173: 0 | F173: 0 | G173: 0 | H173: =SUM(G173) -> 0 | I173: =SUM(H173) -> 0 | J173: =SUM(I173) -> 0 | K173: =SUM(J173) -> 0
A174: 164 | B174: Мероприятие 3 - Закупка и установка осветительного оборудования с заменой неэффективного на энергосберегающее, в том числе замена ламп накаливания на энергосберегающие, строительство, модернизация сетей уличного освещения, проектно-сметные работы, экспертиза проектно-сметной документации
A175: 165 | B175: Всего, из них | C175: =SUM(C176:C177) -> 2556.2 | D175: =SUM(D176:D177) -> 1136.2 | E175: =SUM(E176:E177) -> 1420 | F175: 0 | G175: 0 | H175: 0 | I175: 0 | J175: 0 | K175: =SUM(K176:K177) -> 0 | L175: стр.28
A176: 166 | B176: местный бюджет | C176: =SUM(D176:K176) -> 1968.2 | D176: 548.2 | E176: 1420 | F176: 0 | G176: 0 | H176: 0 | I176: =SUM(H176) -> 0 | J176: 0 | K176: =SUM(J176) -> 0
A177: 167 | B177: областной бюджет | C177: =SUM(D177:K177) -> 588 | D177: 588 | E177: 0 | F177: 0 | G177: 0 | H177: 0 | I177: 0 | J177: 0 | K177: =SUM(J177) -> 0
A178: 168 | B178: 3. Прочие нужды
A179: 169 | B179: Всего по направлению «Прочие нужды», всего, в том числе: | C179: =SUM(C180:C181) -> 65110.75861 | D179: =SUM(D180:D181) -> 4991.9 | E179: =SUM(E180:E181) -> 1541.6 | F179: 1333.25861 | G179: 13600 | H179: 20518.5 | I179: 21625.5 | J179: 750 | K179: 750 | L179: Х
A180: 170 | B180: местный бюджет | C180: =SUM(D180:K180) -> 62110.75861 | D180: =SUM(D188+D193+D197+D200+D184) -> 1991.9 | E180: 1541.6 | F180: 1333.25861 | G180: 13600 | H180: 20518.5 | I180: 21625.5 | J180: 750 | K180: 750
A181: 171 | B181: областной бюджет | C181: =SUM(D181:K181) -> 3000 | D181: =SUM(D189+D194+D185) -> 3000 | E181: 0 | F181: 0 | G181: 0 | H181: 0 | I181: 0 | J181: 0 | K181: 0
A182: 172 | B182: Мероприятие 1- Реконструкция, модернизация водопроводных сетей, сетей системы водоотведения с заменой (без замены) оборудования с более высоким КПД, установка регулируемого привода, реконструкция тепловых сетей, в том числе тепловых пунктов, котельных, капитальный ремонт систем коммунального хозяйства
A183: 173 | B183: Всего, в том числе: | C183: =SUM(D183:K183) -> 52551 | D183: =SUM(D184:D185) -> 0 | E183: 0 | F183: 0 | G183: 13000 | H183: 19775.5 | I183: 19775.5 | J183: 0 | K183: =SUM(K184:K185) -> 0 | L183: стр.29
A184: 174 | B184: местный бюджет | C184: =SUM(D184:K184) -> 52551 | D184: 0 | E184: 0 | F184: 0 | G184: 13000 | H184: 19775.5 | I184: 19775.5 | J184: 0 | K184: 0
A185: 175 | B185: областной бюджет | C185: =SUM(D185:J185) -> 0 | D185: 0 | E185: 0 | F185: 0 | G185: 0 | H185: =SUM(G185) -> 0 | I185: =SUM(H185) -> 0 | J185: =SUM(I185) -> 0 | K185: =SUM(J185) -> 0
A186: 176 | B186: Мероприятие 2 - Оснащение зданий (строений, сооружений), находящихся в муниципальной собственности, многоквартирных жилых домов, жилых помещений, квартир приборами учета используемых энергетических ресурсов, в том числе разработка проектно-сметной документации
A187: 177 | B187: Всего, из них | C187: =SUM(C188:C190) -> 8877.55861 | D187: =SUM(D188:D189) -> 4200 | E187: 1100 | F187: 1250.40861 | G187: 427.15 | H187: 500 | I187: 400 | J187: 500 | K187: 500 | L187: стр.22,23,24,25,26
A188: 178 | B188: местный бюджет | C188: =SUM(D188:K188) -> 5877.55861 | D188: 1200 | E188: 1100 | F188: 1250.40861 | G188: 427.15 | H188: 500 | I188: 400 | J188: 500 | K188: 500
A189: 179 | B189: областной бюджет | C189: =SUM(D189:K189) -> 3000 | D189: 3000 | E189: =SUM(E190) -> 0 | F189: 0 | G189: 0 | H189: 0 | I189: 0 | J189: 0 | K189: 0
A190: 180 | B190: федеральный бюджет | C190: =SUM(D190:J190) -> 0 | D190: 0 | E190: 0 | F190: 0 | G190: =SUM(F190) -> 0 | H190: =SUM(G190) -> 0 | I190: =SUM(H190) -> 0 | J190: =SUM(I190) -> 0 | K190: =SUM(J190) -> 0
A191: 181 | B191: Мероприятие 3 - Закупка и установка осветительного оборудования с заменой неэффективного на энергосберегающее, в том числе замена ламп накаливания на энергосберегающие, строительство, модернизация сетей уличного освещения, проектно-сметные работы, экспертиза проектно-сметной документации
A192: 182 | B192: Всего, из них | C192: =SUM(D192:K192) -> 1791.9 | D192: =SUM(D193:D194) -> 411.9 | E192: =SUM(E193:E194) -> 180 | F192: 0 | G192: 0 | H192: 0 | I192: 1200 | J192: 0 | K192: =SUM(K193:K194) -> 0 | L192: стр.28
A193: 183 | B193: местный бюджет | C193: =SUM(D193:K193) -> 1791.9 | D193: 411.9 | E193: 180 | F193: 0 | G193: 0 | H193: 0 | I193: 1200 | J193: 0 | K193: 0
A194: 184 | B194: областной бюджет | C194: =SUM(D194:J194) -> 0 | D194: 0 | E194: 0 | F194: 0 | G194: 0 | H194: =SUM(G194) -> 0 | I194: =SUM(H194) -> 0 | J194: =SUM(I194) -> 0 | K194: =SUM(J194) -> 0
A195: 185 | B195: Мероприятие 4- Разработка схемы водоснабжения Североуральского городского округа
A196: 186 | B196: Всего, из них | C196: =SUM(D196:K196) -> 380 | D196: =SUM(D197) -> 380 | E196: =SUM(E197) -> 0 | F196: 0 | G196: 0 | H196: 0 | I196: 0 | J196: 0 | K196: 0 | L196: стр.30
A197: 187 | B197: местный бюджет | C197: =SUM(D197:K197) -> 380 | D197: 380 | E197: 0 | F197: 0 | G197: =SUM(F197) -> 0 | H197: =SUM(G197) -> 0 | I197: =SUM(H197) -> 0 | J197: =SUM(I197) -> 0 | K197: =SUM(J197) -> 0
A198: 188 | B198: Мероприятие 9- Прочие мероприятия в области энергосбережения (разработка технических заданий, топливно-энерготехнического баланса и т.п.)
A199: 189 | B199: Всего, из них | C199: =SUM(D199:K199) -> 1510.3 | D199: =SUM(D200) -> 0 | E199: =SUM(E200) -> 261.6 | F199: 82.85 | G199: 172.85 | H199: 243 | I199: 250 | J199: 250 | K199: 250 | L199: стр.35, с 2016 года стр. 36
A200: 190 | B200: местный бюджет | C200: =SUM(D200:K200) -> 1510.3 | D200: 0 | E200: 261.6 | F200: 82.85 | G200: 172.85 | H200: 243 | I200: 250 | J200: =SUM(I200) -> 250 | K200: =SUM(J200) -> 250
A201: 191 | B201: Подпрограмма 3: Развитие лесного хозяйства на территории Североуральского городского округа
... 272 more rows

Sheet Лист2

Sheet Лист3
